[Event "European Women-ch 2023"]
[Site "Petrovac"]
[Date "2023.03.23"]
[Round "6.2"]
[White "Garifullina, Leya"]
[Black "Radeva, Viktoria"]
[Result "1-0"]
[ECO "C11"]
[WhiteElo "2372"]
[BlackElo "2247"]
[Annotator "TA"]
[PlyCount "105"]
[EventDate "2023.03.15"]
[EventType "swiss"]
[EventCountry "MNE"]
[SourceTitle "playchess.com"]
[Source "ChessBase"]
[SourceQuality "1"]
[TimeControl "40/5400+30:1800+30"]

{[%evp 20,105,0,0,0,21,0,8,2,20,0,0,32,22,20,22,22,20,16,19,34,33,55,54,53,58,57,57,60,55,58,58,58,56,55,46,46,46,45,26,45,46,46,47,48,33,35,39,53,0,0,0,0,0,27,27,32,0,0,0,0,0,552,552,447,552,530,505,489,493,889,1508,1129,1647,2120,1656,1447,1223,1548,1545,1137,1516,1002,837,29985,29985,29988,29989]} 1. e4 {[%emt 0:00:15]} e6 {[%emt 0:00:10]} 2. d4 {[%emt 0:00:16]} d5 {[%emt 0:00:04]} 3. Nc3 {[%emt 0:00:07]} Nf6 {[%emt 0:00:05]} 4. e5 {[%emt 0:01:14]} Nfd7 {[%emt 0:00:04]} 5. f4 {[%emt 0:00:11]} c5 {[%emt 0:00:07]} 6. Nf3 {[%emt 0:00:09]} Nc6 {[%emt 0:00:03]} 7. Be3 {[%emt 0:00:12]} cxd4 {[%emt 0:00:06]} 8. Nxd4 {[%emt 0:00:22]} Qb6 {[%emt 0:00:13]} 9. Qd2 {[%emt 0:03:55]} Qxb2 {[%emt 0:00:05]} 10. Rb1 {[%emt 0:00:04][%cal Ba1b1,Bb1b3,Bb3b7][%mdl 32]} Qa3 {[%emt 0:00:06]} 11. Bb5 {[%emt 0:00:55] Threatens to win with Rb3.} Nxd4 {[%emt 0:00:09]} 12. Bxd4 {[%emt 0:00:08][%cal Of4f5] White wants to play f5!} ({Much weaker is} 12. Qxd4 a6 13. Bxd7+ Bxd7 14. Rxb7 Rc8 $17) 12... a6 {[%emt 0:00:08]} 13. Bxd7+ {[%emt 0:00:23]} Bxd7 {[%emt 0:00:03] The position is equal.} 14. Rb3 {[%emt 0:00:56]} Qe7 {[%emt 0:00:06]} 15. Rxb7 {[%emt 0:00:04]} Qh4+ {[%emt 0:00:04]} 16. Qf2 {[%emt 0:06:18]} Qxf2+ {[%emt 0:00:11]} 17. Kxf2 {[%emt 0:00:05]} Be7 {[%emt 0:00:15]} 18. Rhb1 {[%emt 0:00:07]} Bd8 {[%emt 0:00:07]} 19. Rb8 {[%emt 0:02:30]} Rxb8 {[%emt 0:00:05]} 20. Rxb8 {[%emt 0:00:04]} O-O {[%emt 0:00:12] And now ...Bh4+ would win.} 21. Rb7 $1 {[%emt 0:00:16][%cal Bb8b7,Bb7a7,Ba7a6][%mdl 32]} Bc6 {[%emt 0:00:13]} 22. Ra7 {[%emt 0:00:06]} Ba5 {[%emt 0:00:08]} 23. Rxa6 {[%emt 0:00:22]} Bxc3 {[%emt 0:00:11]} 24. Bxc3 $14 {[%emt 0:00:04][%mdl 4096] Endgame KRB-KRB} Rc8 {[%emt 0:00:07]} 25. Ke3 {[%emt 0:02:34]} Bb7 {[%emt 0:00:07][%csl LRa6,LRc3]} 26. Ra3 {[%emt 0:00:05]} h5 {[%emt 0:00:16]} 27. Kd2 {[%emt 0:01:13]} d4 {[%emt 0:00:16][%mdl 64] [#] Discovered Attack} 28. Bxd4 {[%emt 0:00:21]} Bxg2 {[%emt 0:00:07]} 29. Ra7 {[%emt 0:09:12]} Rc4 {[%emt 0:02:36]} 30. c3 {[%emt 0:04:01]} h4 {[%emt 0:00:53]} 31. Ke3 {[%emt 0:02:18]} g6 {[%emt 0:11:08]} 32. a4 {[%emt 0:07:11]} Kg7 {[%emt 0:06:01]} 33. Kd3 {[%emt 0:02:30]} Bd5 {[%emt 0:08:30]} 34. h3 {[%emt 0:03:13]} (34. Kc2 $14) 34... g5 $11 {[%emt 0:13:17]} 35. fxg5 {[%emt 0:00:33]} Kg6 {[%emt 0:00:15]} 36. Be3 {[%emt 0:02:21]} Rc6 {[%emt 0:03:15]} 37. Rd7 {[%emt 0:07:48]} Rc4 {[%emt 0:24:56]} 38. Rd8 {[%emt 0:08:40]} (38. a5 $5 {[%cal Ra5a6]}) 38... Rxa4 {[%emt 0:01:47]} 39. Rh8 {[%emt 0:01:08]} Bc4+ {[%emt 0:13:48]} 40. Kd2 {[%emt 0:00:00]} Bf1 $2 {[%emt 0:00:00][%mdl 8192]} (40... Ra2+ $11 {and Black has nothing to worry.} 41. Kd1 Ra1+ 42. Kd2 Ra2+ 43. Kd1 Ra1+ 44. Kd2 Ra2+) 41. Rh6+ $18 {[%emt 0:03:55]} Kg7 {[%emt 0:06:51] [#]} 42. Bc5 $1 {[%emt 0:01:11] Strongly threatening Be7.} Ra2+ {[%emt 0:09:20]} 43. Ke1 {[%emt 0:07:38] Be7 would be deadly.} Bd3 {[%emt 0:03:52]} 44. Be7 {[%emt 0:00:08] White threatens Bf6+ and mate.} ({Less strong is} 44. Rxh4 Kg6 $14) 44... Bh7 {[%emt 0:00:16]} (44... f6 $142 45. exf6+ (45. Rxf6 Re2+ 46. Kd1 Rh2 $14) 45... Kf7 46. Rxh4 e5) 45. Bf6+ {[%emt 0:00:05]} Kg8 {[%emt 0:00:03]} 46. Rxh4 {[%emt 0:00:06]} Rg2 {[%emt 0:11:42]} 47. c4 {[%emt 0:01:58][%cal Bc3c4,Bc4c5][%mdl 32] aiming for Rd4.} Rg3 {[%emt 0:00:45]} 48. c5 {[%emt 0:02:19]} Rc3 {[%emt 0:00:14]} 49. Rb4 {[%emt 0:01:40][%cal Rb4b8]} Bc2 {[%emt 0:00:15]} 50. h4 {[%emt 0:00:11][%cal Bh3h4,Bh4h5][%mdl 32] Intending Rb8+ and mate.} Kh7 {[%emt 0:02:00]} 51. h5 {[%emt 0:00:03] Threatening mate with Rb8.} Bd1 {[%emt 0:00:33]} 52. Kxd1 {[%emt 0:00:21]} Rxc5 {[%emt 0:00:07]} 53. Rb7 {[%emt 0:00:04] Weighted Error Value: White=0.05 (flawless) /Black=0.36} 1-0

[Event "European Women-ch 2023"]
[Site "Petrovac"]
[Date "2023.03.23"]
[Round "6.2"]
[White "Valkova, Angelika"]
[Black "Ibrahimova, Sabina"]
[Result "1-0"]
[ECO "E71"]
[WhiteElo "2055"]
[BlackElo "2207"]
[Annotator "TA"]
[PlyCount "77"]
[EventDate "2023.03.15"]
[EventType "swiss"]
[EventCountry "MNE"]
[SourceTitle "playchess.com"]
[Source "ChessBase"]
[SourceQuality "1"]
[TimeControl "40/5400+30:1800+30"]

{[%evp 11,77,26,33,16,23,29,23,26,27,29,33,-131,0,0,0,0,0,0,0,0,8,8,0,0,0,8,91,0,0,-99,-108,-106,-37,-41,0,-105,-102,-114,-71,-64,-77,-79,-57,-64,0,-131,-143,-160,-113,-130,120,72,124,137,473,481,669,700,1345,1086,1106,1053,29985,29986,29994,29995,29995,29996]} 1. d4 {[%emt 0:00:03]} Nf6 {[%emt 0:00:06]} 2. c4 {[%emt 0:00:04]} g6 {[%emt 0:00:06]} 3. Nc3 {[%emt 0:00:04]} Bg7 {[%emt 0:00:05]} 4. e4 {[%emt 0:00:05]} d6 {[%emt 0:00:05]} 5. h3 {[%emt 0:00:11]} O-O {[%emt 0:00:12]} 6. Be3 {[%emt 0:00:10]} Nbd7 {[%emt 0:00:13]} 7. g4 {[%emt 0:00:14] E71: King's Indian: 4 e4 d6 5 h3.} c5 {[%emt 0:00:33]} 8. Nge2 {[%emt 0:00:05]} Qa5 {[%emt 0:00:50]} 9. Qd2 {[%emt 0:05:36] White has an edge.} b5 {[%emt 0:03:44] [#]} 10. Bg2 $146 {[%emt 0:00:22] Black must now prevent e5.} ({Predecessor:} 10. cxb5 a6 11. Bg2 axb5 12. e5 cxd4 13. Nxd4 Nxe5 14. Ncxb5 Bd7 15. a4 Qd8 16. g5 {½-½ Bluebaum,M (2635)-Firouzja,A (2549) Moscow Aeroflot op-A 17th 2018 (6)}) 10... b4 {[%emt 0:05:36] [#]} (10... bxc4 11. e5 dxe5 12. dxe5 (12. Bxa8 cxd4 $11) 12... Nxe5 13. Bxa8 $16) 11. e5 $2 {[%emt 0:09:09] [#]} cxd4 {[%emt 0:31:30]} 12. exf6 $11 {[%emt 0:25:33]} bxc3 {[%emt 0:03:48]} 13. fxg7 $1 {[%emt 0:02:23]} cxd2+ {[%emt 0:03:36]} 14. Bxd2 {[%emt 0:00:04]} Qb6 {[%emt 0:13:34]} 15. gxf8=Q+ {[%emt 0:00:12]} (15. Bxa8 $2 Kxg7 16. Nxd4 Qxb2 $19) 15... Kxf8 {[%emt 0:01:53]} 16. Bxa8 {[%emt 0:00:41] A strong pair of Bishops.} Qxb2 {[%emt 0:00:42]} 17. Rd1 {[%emt 0:07:21][%cal Oe2d4]} e5 {[%emt 0:03:06]} 18. O-O {[%emt 0:04:59] Threatens to win with Bh6+.} Nb6 {[%emt 0:02:41]} (18... Kg7 $1 $11 {remains equal.}) 19. Bf3 {[%emt 0:10:05]} (19. Bg2 $16) 19... Kg7 $1 {[%emt 0:05:51] Prevents Bh6+.} 20. Nc1 {[%emt 0:07:11]} (20. Ng3 $11) 20... Nxc4 $17 {[%emt 0:07:22]} 21. Nd3 {[%emt 0:01:12]} Qa3 {[%emt 0:04:24]} (21... Qc2 $17 22. Bc1 Qxa2) 22. Bb4 $15 {[%emt 0:00:54]} Qa4 {[%emt 0:02:51][%mdl 1024] Black has compensation.} 23. Rc1 {[%emt 0:06:05]} (23. Bd5 $11 Nb2 24. Bxd6 (24. Nxb2 Qxb4 25. Nd3 Qa5 $15) (24. Bb3 Qb5 $11) 24... Nxd1 25. Nc5) 23... Be6 $17 {[%emt 0:03:46]} 24. Bd1 {[%emt 0:09:26]} Qb5 {[%emt 0:00:40]} 25. Bb3 {[%emt 0:01:49]} d5 {[%emt 0:01:29][%cal Oc4d2] Strongly threatening ...Nd2!} 26. Bc5 {[%emt 0:03:56] [#]} f6 $1 {[%emt 0:01:38] aiming for ...Nd2.} ({Much weaker is} 26... Nd2 27. Nxe5 f6 28. Nc6 $11) 27. Rfd1 {[%emt 0:00:36] Inhibits Nd2.} (27. Bxa7 $2 Nd2 28. Nc5 (28. Rc7+ $2 Kg8 $19) 28... Bf7 $19) 27... Qd7 {[%emt 0:00:57]} (27... h5 $15 28. g5 (28. Bxa7 $2 {too greedy.} hxg4 29. Bxd4 exd4 $19) 28... fxg5) 28. Bb4 {[%emt 0:02:46]} (28. Bxd4 $1 $11 {keeps the balance.} Bxg4 29. Nc5) 28... Bf7 {[%emt 0:01:27]} 29. Nc5 {[%emt 0:03:03]} Qb5 {[%emt 0:00:44]} 30. a3 {[%emt 0:00:05]} a5 $2 {[%emt 0:00:09]} (30... Qb8 $17 {keeps the pressure on. ...a5 would be deadly.} 31. Ba4 Qc8) 31. Ba4 $16 {[%emt 0:00:03]} Qb8 {[%emt 0:01:20]} (31... Qb6 $142 32. Nd7 Qd8 33. Bf8+ Kg8) 32. Nd7 {[%emt 0:00:28]} Qc7 {[%emt 0:00:48][%mdl 8192] Loses the game.} (32... Qd8 $16 33. Bf8+ Kg8) 33. Be7 $18 {[%emt 0:00:14][%cal Bb4e7,Be7f6,Bf6e5][%mdl 32]} Be8 {[%emt 0:00:28]} 34. Bxf6+ {[%emt 0:00:19]} Kh6 {[%emt 0:00:33]} 35. g5+ {[%emt 0:00:24]} Kh5 {[%emt 0:00:11] [#]} 36. Bxe5 $1 {[%emt 0:00:13][%mdl 576] Pin, Double Attack} Qd8 {[%emt 0:00:50]} (36... Qb7 37. Nf6+) 37. Bf6 {[%emt 0:01:14] White mates.} Qc7 {[%emt 0:00:31]} 38. Rxd4 {[%emt 0:00:09][%cal Ra4d1]} Bxd7 {[%emt 0:00:31]} 39. Bd1+ {[%emt 0:00:08] An entertaining game by Valkova.   Weighted Error Value: White=0.23 (precise) /Black=0.61} 1-0

[Event "European Women-ch 2023"]
[Site "Petrovac"]
[Date "2023.03.23"]
[Round "6.3"]
[White "Narva, Mai"]
[Black "Efroimski, Marsel"]
[Result "1-0"]
[ECO "C01"]
[WhiteElo "2389"]
[BlackElo "2451"]
[Annotator "TA"]
[PlyCount "85"]
[EventDate "2023.03.15"]
[EventType "swiss"]
[EventCountry "MNE"]
[SourceTitle "playchess.com"]
[Source "ChessBase"]
[SourceQuality "1"]
[TimeControl "40/5400+30:1800+30"]

{[%evp 15,85,4,0,0,0,0,0,-13,0,-10,0,-3,0,0,7,14,12,8,0,0,0,0,0,0,4,6,1,0,32,7,10,3,0,0,3,2,36,25,25,29,27,26,42,18,16,8,16,11,18,10,81,71,84,85,96,101,84,104,153,117,224,217,211,170,259,263,975,924,29986,29987,29984,29985]} 1. e4 {[%emt 0:00:04]} e6 {[%emt 0:00:03][%cal Be7e6,Be6d5][%mdl 32]} 2. d4 {[%emt 0:00:14]} d5 {[%emt 0:00:04]} 3. exd5 {[%emt 0:00:28]} exd5 {[%emt 0:00:04]} 4. Nf3 {[%emt 0:00:15]} Nc6 {[%emt 0:00:37]} 5. Bb5 {[%emt 0:13:29]} Bd6 {[%emt 0:00:24]} 6. O-O {[%emt 0:02:14]} Nge7 {[%emt 0:00:22]} 7. c4 {[%emt 0:04:43]} dxc4 {[%emt 0:00:38]} 8. Bxc4 {[%emt 0:01:42]} O-O {[%emt 0:01:08]} 9. h3 {[%emt 0:02:05] Inhibits Bg4. C01: French: Exchange Variation.} Bf5 {[%emt 0:12:26]} 10. Nc3 {[%emt 0:08:47]} Qd7 {[%emt 0:01:24]} 11. Nb5 {[%emt 0:14:08] The position is equal.} Rad8 {[%emt 0:03:37] [#]} 12. a3 $146 {[%emt 0:18:53]} ({Predecessor:} 12. Nxd6 Qxd6 13. Be3 Be4 14. a3 Qg6 15. Nh4 Qf6 16. Qg4 Bf5 17. Nxf5 Qxf5 18. Rfd1 Qxg4 19. hxg4 {1-0 Okhotnik,V (2437)-Salami,M (2195) Crema op 12th 2010 (4)}) 12... h6 {[%emt 0:08:39][%cal Od6c5]} 13. Re1 {[%emt 0:05:34]} Ng6 {[%emt 0:02:34]} 14. d5 $1 {[%emt 0:04:49]} Bc5 {[%emt 0:05:30][%cal Of5h3] Strongly threatening ...Bxh3!} 15. b4 {[%emt 0:04:46]} Bb6 {[%emt 0:00:11][%cal Of5h3] White must now prevent ...Bxh3!} 16. Nc3 {[%emt 0:04:00]} Nce7 {[%emt 0:03:45][%cal Bc6e7,Be7g6,Bg6f4][%mdl 32]} 17. Be3 {[%emt 0:00:23]} c6 {[%emt 0:03:35]} 18. Bxb6 {[%emt 0:02:21]} axb6 {[%emt 0:00:09]} 19. Ne5 {[%emt 0:02:54]} Nxe5 {[%emt 0:12:20]} 20. Rxe5 {[%emt 0:00:06]} Ng6 {[%emt 0:01:03]} 21. Re1 {[%emt 0:02:24] aiming for g4.} Nf4 {[%emt 0:07:30][%cal Rc6d5]} 22. Qd4 {[%emt 0:05:13]} (22. Qf3 $5 {[%cal Rf3f4]} Nxd5 23. Rad1 $11) 22... Nxd5 {[%emt 0:04:36]} 23. Bxd5 {[%emt 0:00:36]} cxd5 {[%emt 0:00:12]} 24. Rad1 {[%emt 0:00:35]} Be6 {[%emt 0:11:19]} 25. Qxb6 {[%emt 0:00:32]} Qc6 {[%emt 0:05:03]} 26. Qd4 {[%emt 0:00:30]} (26. Qxc6 {simplifies} bxc6 27. Ne2 Ra8 28. Rd3) 26... Qc4 {[%emt 0:02:46]} 27. Re3 {[%emt 0:00:16]} Qxd4 {[%emt 0:01:34]} 28. Rxd4 {[%emt 0:00:05]} Rd6 {[%emt 0:00:49]} 29. f4 {[%emt 0:01:47]} Rc8 {[%emt 0:01:07]} 30. Red3 {[%emt 0:01:02][%cal Rc3d5]} Kf8 {[%emt 0:01:15]} 31. g4 {[%emt 0:00:31]} g6 {[%emt 0:01:27]} 32. Kf2 {[%emt 0:00:14]} (32. Nxd5 $2 {is the wrong capture.} Rcd8 33. Kf2 Rxd5 $19) 32... Rdc6 {[%emt 0:03:12]} (32... h5 $11) 33. Nxd5 $16 {[%emt 0:00:33] White is more active.} Rc2+ {[%emt 0:00:07]} 34. Kg3 {[%emt 0:00:24]} Rd8 {[%emt 0:02:43] [#]} 35. a4 $1 {[%emt 0:00:43]} Rb2 {[%emt 0:02:11]} 36. Ne3 {[%emt 0:00:36]} Re8 {[%emt 0:00:48]} ({Better is} 36... Rxd4 37. Rxd4 Bb3) 37. f5 {[%emt 0:00:29]} gxf5 {[%emt 0:00:13]} (37... Bb3 $16 {was called for.}) 38. gxf5 $18 {[%emt 0:00:04]} ({Don't play} 38. Nxf5 $6 Bxf5 39. gxf5 Kg7 $16) 38... Ba2 {[%emt 0:00:12]} 39. f6 {[%emt 0:00:57]} Re2 {[%emt 0:00:57]} (39... Bb1 $142) 40. Kf3 {[%emt 0:00:00]} Rh2 {[%emt 0:00:00] [#]} (40... Rb2 41. Rc3 Kg8 42. Rg4+ Kh8) 41. Rh4 $1 {[%emt 0:03:31]} Bb1 {[%emt 0:02:23] [#]} 42. Rxh6 $1 {[%emt 0:01:47][%cal Rh6h8]} Kg8 {[%emt 0:00:07]} 43. Rd4 {[%emt 0:00:52] Weighted Error Value: White=0.04 (flawless) /Black=0.34} 1-0

[Event "European Women-ch 2023"]
[Site "Petrovac"]
[Date "2023.03.23"]
[Round "6.3"]
[White "Sargsyan, Anna M."]
[Black "Toncheva, Nadya"]
[Result "1-0"]
[ECO "B48"]
[WhiteElo "2371"]
[BlackElo "2192"]
[Annotator "TA"]
[PlyCount "103"]
[EventDate "2023.03.15"]
[EventType "swiss"]
[EventCountry "MNE"]
[SourceTitle "playchess.com"]
[Source "ChessBase"]
[SourceQuality "1"]
[TimeControl "40/5400+30:1800+30"]

{[%evp 11,103,27,59,25,24,16,25,5,25,26,18,27,21,25,0,13,30,24,0,0,0,-17,0,-30,40,11,44,15,4,4,0,-85,0,0,0,0,14,0,0,0,0,0,0,-3,0,9,92,0,0,0,79,-98,0,0,0,0,27,0,0,0,37,37,610,606,599,592,598,584,668,665,644,643,625,601,12834,12835,12836,12835,12838,12839,12840,12839,12840,12840,12840,12838,12841,12838,12841,12842,12842,12843,12843,12843]} 1. e4 {[%emt 0:00:41]} c5 {[%emt 0:00:06]} 2. Nf3 {[%emt 0:00:08]} e6 {[%emt 0:00:05]} 3. d4 {[%emt 0:00:05]} cxd4 {[%emt 0:00:04]} 4. Nxd4 {[%emt 0:00:07]} Nc6 {[%emt 0:00:03]} 5. Nc3 {[%emt 0:00:12]} Qc7 {[%emt 0:00:05]} 6. Be3 {[%emt 0:00:07]} a6 {[%emt 0:00:05]} 7. Qf3 {[%emt 0:00:06]} Bd6 {[%emt 0:00:04]} 8. O-O-O {[%emt 0:00:07]} Be5 $1 {[%emt 0:00:02]} 9. g3 {[%emt 0:00:11] White has an edge.} Nge7 {[%emt 0:00:04]} 10. Qe2 {[%emt 0:00:15]} b5 {[%emt 0:00:05][%cal Bb7b5,Bb5b4,Bb4b3][%mdl 32]} 11. f4 {[%emt 0:00:06]} Bxd4 {[%emt 0:00:04]} 12. Bxd4 {[%emt 0:00:06]} Nxd4 {[%emt 0:00:04]} 13. Rxd4 {[%emt 0:00:09]} O-O {[%emt 0:00:03]} 14. Bg2 {[%emt 0:00:08]} Nc6 {[%emt 0:00:13]} 15. Rd2 {[%emt 0:00:04]} b4 {[%emt 0:00:21]} 16. Na4 {[%emt 0:00:11]} d6 {[%emt 0:00:19]} 17. e5 {[%emt 0:11:11]} dxe5 {[%emt 0:05:59]} (17... d5 $1 $11) 18. Qe4 {[%emt 0:06:59]} b3 {[%emt 0:25:26]} 19. a3 {[%emt 0:34:30]} (19. Qxc6 $2 bxa2 20. c4 Qxc6 21. Bxc6 a1=Q+ $19) (19. axb3 {simplifies} Bb7 20. Qc4 Rac8 21. fxe5 Nxe5 22. Qxc7 Rxc7 23. Bxb7 Rxb7 24. Rd6) 19... Bb7 {[%emt 0:19:47] ...Rad8 would be deadly.} 20. Nc5 {[%emt 0:00:29]} Rac8 $1 {[%emt 0:03:21] Hoping for ...Ba8.} (20... f5 21. Qc4 Rac8 22. Qxe6+ (22. Qxb3 $2 Nd4 $19 {[%mdl 64] Discovered Attack}) (22. Rd7 Qxd7 23. Nxd7 Nd4 $16) 22... Kh8 23. Nxb7 (23. cxb3 $2 Nd4 $19) (23. Nxb3 exf4 24. Rd7 Qb8 $14) (23. Qxb3 Na5 $17 {[%mdl 64] Discovered Attack}) 23... Qxb7 24. Qxe5 $16 (24. cxb3 $2 Nd4+ {[%mdl 64] Discovered Attack} 25. Kb1 Qxg2 $19) (24. fxe5 Qc7 $16) (24. Qxb3 Qxb3 25. cxb3 e4 $16)) 21. Qa4 {[%emt 0:08:50]} (21. Nxb7 $1 $11 Qxb7 22. Rd6) 21... Na5 {[%emt 0:05:08]} (21... Rfd8 $17 {...Rxd2 is the strong threat.} 22. Rxd8+ (22. Nxb3 $2 Rxd2 {[%mdl 64] Deflection} 23. Nxd2 Nd4 $19) 22... Rxd8 23. Nxb7 Na5) 22. Bxb7 $1 $11 {[%emt 0:07:03]} Nxb7 {[%emt 0:00:21]} 23. Nxb3 {[%emt 0:00:06]} exf4 {[%emt 0:02:17]} 24. Qxa6 {[%emt 0:01:28]} e5 {[%emt 0:08:20]} 25. gxf4 {[%emt 0:03:08]} exf4 {[%emt 0:00:30]} 26. Rf1 {[%emt 0:00:10]} Rfe8 {[%emt 0:04:23]} 27. c3 {[%emt 0:03:18]} Ra8 {[%emt 0:01:38]} 28. Qb5 {[%emt 0:00:22]} Re5 {[%emt 0:04:36] [#]} (28... Nd6 $11 {remains equal.} 29. Qc5 Qxc5 30. Nxc5 Ne4) 29. Qb4 {[%emt 0:02:39] White is more active.} (29. Qd7 $1 $16 {[%cal Rd7c7]} Qb6 30. Qd4) 29... g5 {[%emt 0:01:33]} 30. h4 {[%emt 0:02:56] Threatens to win with hxg5.} h6 {[%emt 0:00:23]} (30... Rb8 $11 31. Rfd1 (31. hxg5 Na5 $17 {[%mdl 64] Discovered Attack}) 31... h6) 31. Rfd1 $2 {[%emt 0:03:38]} (31. hxg5 $16 {keeps the pressure on.} hxg5 32. Rg2) 31... Rd8 {[%emt 0:01:37]} (31... gxh4 $2 32. Rd7 Qc6 33. Qxf4 $18) ({Black should try} 31... Nc5 $17) 32. hxg5 {[%emt 0:03:40]} hxg5 {[%emt 0:00:08]} 33. Nd4 {[%emt 0:00:05]} Re4 {[%emt 0:04:41]} 34. Qb5 {[%emt 0:00:35]} Re5 {[%emt 0:00:31]} 35. Qb4 {[%emt 0:05:15]} Re4 {[%emt 0:00:04]} 36. Rg1 $40 {[%emt 0:03:13][%mdl 128] White mounts an attack.} Rd5 {[%emt 0:01:52][%mdl 8192] [#] This costs Black the game.} (36... f6 $14) 37. Ne6 $1 $18 {[%emt 0:04:23][%mdl 576] Qf8+ would kill now. Discovered Attack, Double Attack. White is clearly winning.} Rxb4 {[%emt 0:05:50]} 38. Rxd5 {[%emt 0:00:16]} (38. Nxc7 Rxd2 39. Rxg5+ (39. cxb4 Rf2 $18) 39... Kf8 40. cxb4 (40. Kxd2 Rxb2+ 41. Kd3 Nd6 $11) (40. axb4 Rf2 $18) 40... Rf2 $18) 38... fxe6 {[%emt 0:04:46]} 39. Rdxg5+ {[%emt 0:00:05]} Kf8 {[%emt 0:00:34]} 40. Rg8+ {[%emt 0:00:00]} (40. axb4 $2 Qh7 41. R1g4 Qe4 42. Rg8+ Kf7 43. R4g7+ Kf6 $19) 40... Ke7 {[%emt 0:00:00]} 41. R1g7+ {[%emt 0:00:19]} (41. axb4 Qe5 42. R1g7+ Kf6 43. Rg6+ (43. Rxb7 $2 {is the wrong capture.} Qe1+ 44. Kc2 Qe4+ 45. Kd2 Qxb7 $19) 43... Kf7 44. R8g7+ Qxg7 45. Rxg7+ Kxg7 $19) 41... Kd6 {[%emt 0:00:14]} 42. Rxc7 {[%emt 0:00:10] Black must now prevent Rgg7.} (42. axb4 $2 {perishes.} Qb6 43. Rb8 f3 $19) 42... Rxb2 {[%emt 0:00:25][%mdl 4096] Endgame KRR-KRN} 43. Rgg7 {[%emt 0:04:58]} Rh2 {[%emt 0:02:34]} 44. Rxb7 {[%emt 0:00:06]} f3 {[%emt 0:00:05]} 45. Rgf7 {[%emt 0:00:18]} Rf2 {[%emt 0:02:30]} 46. Rb2 {[%emt 0:01:55]} Rf1+ {[%emt 0:00:06]} 47. Kc2 {[%emt 0:00:03]} e5 {[%emt 0:01:02]} 48. Kd3 {[%emt 0:00:05]} Kd5 {[%emt 0:00:54]} 49. Ke3 {[%emt 0:00:34]} e4 {[%emt 0:00:20]} 50. Rd2+ {[%emt 0:01:17]} Ke6 {[%emt 0:00:29]} 51. Rf4 {[%emt 0:00:09]} Re1+ {[%emt 0:00:23]} 52. Kf2 {[%emt 0:00:11] A cool game by Sargsyan.   Weighted Error Value: White=0.17 (very precise) /Black=0.42} 1-0